bitfinex/quotes_ETHUSD_20240601
["timestamp","ask_amount","ask_price","bid_price","bid_amount"]
[1717210365385,2.64746,3777.2,3776.4,0.29567]
[1717210366056,2.64746,3777.2,3776.3,0.64]
[1717210366235,2.4754,3777.1,3776.3,0.64]
[1717210367597,2.64762,3777.0,3775.9,4.99162]
[1717210367881,2.64762,3777.0,3776.1,0.64]
[1717210368433,2.4754,3776.9,3775.9,5.63162]
[1717210368664,2.64774,3776.8,3775.9,2.64832]
[1717210368888,2.64774,3776.8,3775.9,3.28832]
[1717210369474,2.4754,3776.7,3775.9,3.28832]
[1717210369674,2.4754,3776.7,3775.7,0.64]
[1717210369675,3.0781902,3776.7,3775.7,0.64]
[1717210373386,2.4754,3776.7,3775.7,0.64]
[1717210377458,2.4754,3776.7,3775.9,0.64]
[1717210386447,2.4754,3776.7,3775.6,0.32886]
[1717210386646,2.4754,3776.7,3775.8,0.64]
[1717210387404,2.6479,3776.6,3775.4,2.64868]
[1717210387623,2.416,3776.4,3775.4,3.8695696]
[1717210388273,2.416,3776.4,3775.0,0.55191598]
[1717210388274,0.64,3776.3,3775.0,0.55191598]
[1717210388583,2.416,3776.1,3775.1,0.64]
[1717210388967,2.416,3776.1,3775.2,0.64]
[1717210390068,2.416,3776.0,3775.2,0.64]
[1717210397607,2.416,3776.4,3775.7,0.64]
[1717210397911,2.416,3776.4,3775.9,0.64]
[1717210401221,2.416,3776.4,3775.5,2.2571]
[1717210401551,2.416,3776.4,3775.7,0.64]
[1717210401828,0.506391,3776.3,3775.7,0.64]
[1717210403130,2.3177,3776.2,3774.9,4.90482]
[1717210403284,2.3177,3776.2,3775.2,0.64]
[1717210403485,5.60588,3776.2,3775.2,0.64]
[1717210405427,3.28818,3776.2,3775.2,0.64]
[1717210405627,2.3177,3776.1,3775.2,0.64]
[1717210408443,2.6483,3776.0,3775.2,0.64]
[1717210408647,2.3177,3775.9,3775.2,0.64]
[1717210409514,2.3177,3775.9,3775.4,0.64]
[1717210413868,2.3177,3775.9,3775.2,0.64]
[1717210418544,2.3177,3775.9,3774.9,2.64902]
[1717210418695,2.3177,3775.9,3775.1,0.64]
[1717210422136,2.64844,3775.8,3775.1,0.64]
[1717210422434,2.2927,3775.7,3775.1,0.64]
[1717210423291,2.2927,3775.7,3774.9,2.64902]
[1717210423490,2.2927,3775.7,3775.2,0.64]
[1717210425035,2.2927,3775.7,3774.9,2.64902]
[1717210425036,2.2927,3775.7,3775.0,0.64]
[1717210426434,2.2927,3775.7,3774.4,5.07176]
[1717210426589,2.2927,3775.7,3774.8,0.64]
[1717210427540,2.2927,3775.7,3774.4,5.07176]
[1717210427838,2.2927,3775.7,3774.9,0.64]
[1717210428012,2.850814,3775.7,3774.9,0.64]
[1717210428530,2.2927,3775.5,3774.7,0.64]
[1717210430185,2.2927,3775.5,3774.9,0.64]
[1717210437627,2.2927,3775.5,3774.4,5.07176]
[1717210437963,2.2927,3775.5,3774.9,0.64]
[1717210439859,2.2927,3775.5,3774.5,0.807176]
[1717210440056,2.2927,3775.5,3774.9,0.64]
[1717210440261,2.2927,3775.5,3775.1,0.64]
[1717210440425,0.18066772,3775.8,3775.4,0.64]
[1717210440617,0.18066772,3775.8,3775.2,0.64]
[1717210442673,0.18066772,3775.8,3775.4,0.64]
[1717210442886,0.18066772,3775.8,3775.4,3.0676]
[1717210443713,0.18066772,3775.8,3775.4,0.64]
[1717210447175,0.18066772,3775.8,3775.3,0.328898]
[1717210447332,0.18066772,3775.8,3775.2,0.64]
[1717210447726,0.18066772,3775.8,3775.0,2.64898]
[1717210447727,0.18066772,3775.8,3775.1,0.64]
[1717210447927,2.4981,3775.7,3775.2,0.64]
[1717210454846,2.4981,3775.7,3774.5,5.887916]
[1717210455149,2.4981,3775.7,3774.8,0.64]
[1717210455345,3.09482477,3775.7,3774.8,0.64]
[1717210460218,2.4981,3775.7,3774.8,0.64]
[1717210461542,2.4981,3775.7,3775.0,0.64]
[1717210469436,2.4981,3775.7,3775.4,0.3910315]
[1717210480609,2.3582,3776.2,3775.5,0.64]
[1717210483799,2.3582,3776.2,3775.4,0.3910315]
[1717210484383,2.3582,3776.2,3775.4,0.73212465]
[1717210485100,2.3582,3776.2,3775.5,0.64]
[1717210489959,5.00634,3776.3,3775.5,0.64]
[1717210490498,5.00634,3776.3,3775.6,2.3799]
[1717210490792,5.00634,3776.3,3775.6,2.75510247]
[1717210491878,2.3582,3776.6,3775.7,0.64]
[1717210492096,2.3582,3776.6,3775.6,2.75510247]
[1717210492097,2.64778,3776.8,3776.0,0.64]
[1717210493270,2.3582,3776.7,3775.6,2.75510247]
[1717210493485,0.64,3776.6,3775.7,0.64]
[1717210493692,2.3582,3776.5,3775.7,0.64]
[1717210495287,2.3582,3776.5,3775.6,2.75510247]
[1717210495474,2.3582,3776.5,3775.6,3.39510247]
[1717210497234,2.3582,3776.5,3775.6,3.0199]
[1717210502944,3.28806,3776.4,3775.6,2.3799]
[1717210503245,2.64806,3776.4,3775.4,3.4590315]
[1717210503451,3.28806,3776.4,3775.4,3.4590315]
[1717210504016,2.3183,3776.0,3775.4,0.3910315]
[1717210505813,2.64839,3775.9,3775.4,0.3910315]
[1717210528023,0.64,3775.8,3775.4,0.3910315]
[1717210528136,2.3876,3775.7,3775.4,0.3910315]
[1717210542439,2.2972,3776.2,3775.4,1.0310315]
[1717210542569,0.57267912,3776.1,3775.5,2.3464]
[1717210542749,3.0,3776.3,3775.5,2.3464]
[1717210543321,3.0,3776.3,3775.6,0.64]
[1717210547017,3.0,3776.3,3775.7,2.3464]
[1717210549064,3.628807,3776.3,3775.7,2.3464]
[1717210550077,5.926007,3776.3,3775.4,3.3774315]
[1717210554830,5.926007,3776.3,3775.4,2.7374315]
[1717210555431,2.64817,3776.2,3775.4,2.7374315]
[1717210555610,3.5695877,3776.2,3775.4,2.7374315]
[1717210555987,2.2972,3776.1,3775.4,0.3910315]
[1717210556186,2.2972,3776.1,3775.4,2.7374315]
[1717210561428,2.64817,3776.2,3775.5,0.64]
[1717210561598,3.0,3776.3,3775.5,0.64]
[1717210561807,3.0,3776.4,3775.6,0.33774315]
[1717210564641,2.64813,3776.3,3775.5,0.64]
[1717210564843,2.2825,3776.2,3775.4,2.7374315]
[1717210565749,2.2825,3776.2,3775.5,0.64]
[1717210566839,2.64813,3776.3,3775.5,0.64]
[1717210568331,2.64813,3776.3,3775.5,1.24262715]
[1717210568508,2.64813,3776.3,3775.6,2.3764]
[1717210574343,2.64813,3776.3,3775.7,0.64]
[1717210575836,2.2825,3776.7,3775.9,0.64]
[1717210576038,2.2825,3776.7,3776.0,2.3764]
[1717210576365,2.6478,3776.8,3776.1,0.94164]
[1717210576562,2.6478,3776.8,3776.2,2.3764]
[1717210576747,5.12704657,3777.3,3776.3,0.64]
[1717210576962,0.57256409,3777.2,3776.6,2.3764]
[1717210577167,0.57253791,3777.2,3776.6,2.3764]
[1717210577336,2.84454657,3777.3,3776.6,2.3764]
[1717210577822,0.19709657,3777.3,3776.9,0.64]
[1717210578016,0.19709657,3777.3,3776.7,0.64]
[1717210579620,0.19709657,3777.3,3776.7,0.69295207]
[1717210579971,0.19709657,3777.3,3776.7,0.64]
[1717210580171,0.19709657,3777.3,3776.9,0.64]
[1717210580378,0.19709657,3777.3,3777.0,2.4951]
[1717210580540,0.19709657,3777.3,3777.1,0.31351]
[1717210592179,0.19709657,3777.3,3777.1,0.558766]
[1717210596115,0.19709657,3777.3,3777.2,0.64]
[1717210596267,2.64707,3777.8,3777.2,0.64]
[1717210596268,2.64707,3777.8,3777.2,3.1351]
[1717210596617,2.64707,3777.8,3777.6,2.4951]
[1717210596764,2.64707,3777.8,3777.7,0.31351]
[1717210596965,4.98474,3778.3,3777.7,0.31351]
[1717210597168,4.98474,3778.3,3777.6,2.4951]
[1717210597425,4.98474,3778.3,3777.7,0.64]
[1717210597917,2.64674,3778.3,3777.7,0.64]
[1717210598677,2.64674,3778.3,3777.6,2.4951]
[1717210599437,2.64674,3778.3,3777.7,0.64]
[1717210599590,2.64674,3778.3,3777.7,0.95351]
[1717210600743,5.64637,3778.8,3778.0,0.64]
[1717210600910,5.64637,3778.8,3778.2,0.64]
[1717210601405,2.64637,3778.8,3778.2,0.64]
[1717210605552,2.64637,3778.8,3778.1,2.2823]
[1717210605695,2.64637,3778.8,3778.2,0.22823]
[1717210606734,3.28637,3778.8,3778.2,0.22823]
[1717210606942,2.3819,3778.7,3777.8,2.9223]
[1717210607840,2.3819,3778.7,3777.7,0.64]
[1717210608238,2.3819,3778.7,3777.6,2.2823]
[1717210608239,2.64656,3778.5,3777.6,2.2823]
[1717210608447,2.64656,3778.5,3777.6,2.9223]
[1717210608648,2.64656,3778.5,3777.8,0.64]
[1717210610792,2.64656,3778.5,3777.7,0.93223]
[1717210612632,2.64656,3778.5,3777.9,0.64]
[1717210615456,2.64656,3778.5,3777.7,0.93223]
[1717210619368,2.2617,3778.4,3777.7,0.93223]
[1717210619694,2.2617,3778.4,3777.6,2.2823]
[1717210619695,2.64669,3778.3,3777.5,0.64]
[1717210620243,2.2617,3778.2,3777.5,0.64]
[1717210621257,2.2617,3778.2,3777.3,2.64736]
[1717210621473,2.2617,3778.2,3777.4,0.64]
[1717210621802,2.816539,3778.2,3777.2,0.64]
[1717210622102,2.2617,3778.2,3777.1,0.558766]
[1717210622315,2.2617,3778.2,3777.3,0.64]
[1717210623211,2.2617,3777.9,3777.1,0.558766]
[1717210623360,2.2617,3777.9,3777.1,0.245256]
[1717210623680,2.2617,3777.9,3777.1,0.885256]
[1717210624611,2.2617,3777.9,3777.1,0.245256]
[1717210624762,2.2617,3777.9,3777.2,0.64]
[1717210626362,2.64708,3777.8,3777.2,0.64]
[1717210626709,2.2617,3777.7,3777.1,0.245256]
[1717210627879,2.64708,3777.8,3777.1,0.885256]
[1717210628565,2.64708,3777.8,3777.3,0.64]
[1717210632735,2.2617,3778.2,3777.7,0.64]
[1717210633025,2.64673,3778.3,3777.9,0.64]
[1717210640226,2.2617,3778.5,3777.9,0.64]
[1717210640510,2.64638,3778.8,3778.2,0.64]
[1717210640511,5.10378,3778.8,3778.2,0.64]
[1717210642459,5.10378,3778.8,3778.2,0.30332]
[1717210642747,5.10378,3778.8,3778.0,0.64]
[1717210642892,2.4574,3778.7,3778.0,0.64]
[1717210647166,2.64638,3778.8,3778.2,0.64]
[1717210654487,2.64638,3778.8,3778.1,2.3932]
[1717210654688,2.4574,3778.7,3777.9,0.64]
[1717210654971,2.4574,3778.7,3777.9,0.94332]
[1717210657625,2.4574,3778.7,3777.9,0.30332]
[1717210658140,2.4574,3778.7,3778.0,0.64]
[1717210661949,2.4574,3778.7,3778.2,0.64]
[1717210669731,2.4574,3778.7,3778.2,0.94393]
[1717210672990,2.4574,3778.7,3778.2,0.64]
[1717210680287,0.17484689,3779.1,3778.2,0.64]
[1717210680491,2.271,3779.0,3778.5,0.64]
[1717210684490,2.3147,3778.8,3777.6,2.64713]
[1717210684658,2.3147,3778.8,3778.0,0.64]
[1717210685695,2.3147,3778.8,3778.2,0.64]
[1717210688192,2.3147,3778.6,3777.6,2.64713]
[1717210688390,2.3147,3778.6,3778.0,0.64]
[1717210688592,2.3147,3778.6,3777.8,0.64]
[1717210689098,2.3147,3778.6,3778.0,0.64]
[1717210690591,2.64655,3778.5,3777.3,0.3282456]
[1717210690799,2.3147,3778.4,3777.8,0.64]
[1717210691749,2.3147,3778.4,3777.3,0.3282456]
[1717210691955,2.3147,3778.4,3777.7,0.64]
[1717210692383,2.6467,3778.3,3777.2,2.3607]
[1717210692580,2.3147,3778.2,3777.7,0.64]
[1717210698988,2.3147,3778.2,3777.3,0.5253466]
[1717210699190,2.3147,3778.2,3777.7,0.64]
[1717210707416,2.3841,3778.7,3777.9,0.64]
[1717210707610,1.07536182,3778.6,3777.9,0.64]
[1717210707844,0.503047,3778.6,3777.9,0.64]
[1717210711346,1.07535975,3778.6,3777.9,0.64]
[1717210715550,0.57231282,3778.5,3777.9,0.64]
[1717210715740,0.57231282,3778.6,3777.9,0.64]
[1717210717666,2.64653,3778.6,3777.9,0.64]
[1717210717812,0.57231286,3778.5,3777.9,0.64]
[1717210718158,0.57231286,3778.5,3778.4,0.64]
[1717210718362,3.21850571,3779.0,3778.4,0.64]
[1717210718664,3.57227571,3778.9,3778.4,0.64]
[1717210718970,3.0,3778.9,3778.4,0.64]
[1717210723714,5.10775,3778.8,3777.7,5.07527]
[1717210723915,5.10775,3778.8,3778.0,0.64]
[1717210730946,0.57228872,3778.7,3778.0,0.64]
[1717210731587,2.64649,3778.6,3778.0,0.64]
[1717210732768,2.64649,3778.6,3777.7,2.4282]
[1717210732918,2.64649,3778.6,3778.0,0.64]
[1717210733119,3.457279,3778.6,3778.0,0.64]
[1717210739167,3.0,3778.9,3778.5,0.64]
[1717210739395,2.2541,3779.2,3778.5,0.64]
[1717210739633,3.21839001,3779.1,3778.5,0.64]
[1717210739767,3.57226001,3779.0,3778.5,0.64]
[1717210739952,4.147249,3779.0,3778.5,0.64]
[1717210740681,4.147249,3779.0,3778.3,0.64]
[1717210743383,2.6463,3778.9,3778.1,0.245256]
[1717210743589,2.6463,3778.9,3778.1,0.885256]
[1717210745618,2.64645,3778.7,3778.1,0.245256]
[1717210752616,2.64645,3778.7,3778.1,0.885256]
[1717210754529,2.64645,3778.7,3778.3,0.64]
[1717210756195,3.0,3779.0,3778.3,0.64]
[1717210756399,1.1222632,3778.9,3778.3,0.64]
[1717210756690,0.55,3778.9,3778.3,0.64]
[1717210756913,0.57226666,3778.9,3778.6,0.64]
[1717210757100,0.57226666,3779.1,3778.6,0.64]
[1717210757423,2.84616588,3779.2,3778.6,0.64]
[1717210757622,0.20006588,3779.2,3778.6,0.64]
[1717210757822,0.20006588,3779.2,3778.6,0.97563156]
[1717210760326,2.4213,3779.1,3778.6,0.33563156]
[1717210760484,2.4213,3779.1,3778.5,0.64]
[1717210764714,2.4213,3779.1,3778.1,0.245256]
[1717210764956,2.64624,3779.0,3778.2,0.64]
[1717210766553,3.23700059,3779.0,3778.2,0.64]
[1717210767556,0.55,3778.9,3778.1,0.245256]
[1717210767878,2.4213,3778.8,3778.1,0.245256]
[1717210773645,2.4213,3778.8,3778.2,0.64]
[1717210779216,2.4213,3778.8,3778.1,0.245256]
[1717210779511,2.4213,3778.8,3778.1,0.885256]
[1717210784693,3.04213006,3778.8,3778.1,0.885256]
[1717210785685,2.64642,3778.7,3778.1,0.245256]
[1717210789809,2.3307,3778.6,3778.1,0.245256]
[1717210793715,2.3307,3778.6,3778.0,0.64]
[1717210803339,2.3307,3778.6,3777.8,0.64]
[1717210803837,2.94549501,3778.6,3777.8,0.64]
[1717210807032,2.94549501,3778.6,3778.0,0.64]
[1717210810594,2.3102,3778.5,3777.5,2.64721]
[1717210810838,2.3102,3778.5,3777.9,0.64]
[1717210810989,0.5571415,3778.4,3777.9,0.64]
[1717210811190,2.3102,3778.5,3777.9,0.64]
[1717210813564,0.64,3778.0,3777.1,0.64]
[1717210813809,2.3102,3778.1,3777.3,0.64]
[1717210813979,1.12238341,3778.0,3777.3,0.64]
[1717210814471,0.55,3778.0,3777.3,0.64]
[1717210814972,1.12239769,3778.0,3777.3,0.64]
[1717210815471,0.55,3778.0,3777.3,0.64]
[1717210817225,2.3102,3777.9,3776.9,2.4017]
[1717210817620,0.55,3777.8,3777.3,0.64]
[1717210820058,0.55,3777.8,3776.9,2.4017]
[1717210820251,0.55,3777.8,3777.3,0.64]
[1717210824255,0.55,3777.8,3777.5,0.64]
[1717210824474,2.3102,3777.9,3777.5,0.64]
[1717210825794,2.50839276,3777.9,3776.9,2.4017]
[1717210826033,2.50839276,3777.9,3777.3,0.64]
[1717210827661,2.50839276,3777.9,3777.0,0.98317]
[1717210827882,2.50839276,3777.9,3777.2,0.64]
[1717210828165,2.64707,3777.8,3776.7,7.43]
[1717210828305,2.3591,3777.7,3776.8,0.64]
[1717210828501,0.55,3777.6,3776.5,2.64792]
[1717210828707,0.55,3777.6,3777.0,0.64]
[1717210830048,0.55,3777.6,3776.5,2.64792]
[1717210830350,0.55,3777.6,3776.8,0.64]
[1717210832650,0.55,3777.6,3777.0,0.64]
[1717210833250,0.55,3777.6,3777.0,3.1113]
[1717210833593,0.55,3777.6,3777.2,0.64]
[1717210834651,0.19819276,3777.9,3777.2,0.64]
[1717210834853,0.19819276,3777.9,3777.5,0.64]
[1717210835060,0.19819276,3777.9,3777.8,0.64]
[1717210835351,2.64636,3778.8,3777.8,0.95113]
[1717210835552,2.64636,3778.8,3778.1,0.64]
[1717210841707,2.64636,3778.8,3777.9,0.64]
[1717210849078,2.64636,3778.8,3778.0,2.4258]
[1717210850545,2.64636,3778.8,3778.1,0.64]
[1717210851249,2.63577365,3778.8,3778.1,0.977693]
[1717210856215,2.63577365,3778.8,3778.3,0.64]
[1717210861011,2.63577365,3778.8,3778.1,0.977693]
[1717210862801,2.63577365,3778.8,3778.3,0.64]
[1717210863125,2.63577365,3778.8,3778.3,0.9803493]
[1717210867523,2.63577365,3778.8,3778.3,0.64]
[1717210877684,0.57227623,3778.7,3778.1,0.64]
[1717210877892,0.55,3778.6,3777.9,0.64]
[1717210878136,1.12227623,3778.6,3777.9,0.64]
[1717210879539,0.57227623,3778.6,3778.1,0.64]
[1717210879689,0.57227623,3778.6,3778.1,3.0577]
[1717210879888,2.63577365,3778.8,3778.2,0.30577]
[1717210880194,2.63577365,3778.8,3778.1,3.0577]
[1717210889950,2.63577365,3778.8,3778.2,0.64]
[1717210892995,0.57227717,3778.7,3778.2,0.64]
[1717210893647,2.4672,3778.6,3777.7,2.4177]
[1717210893825,2.4672,3778.6,3778.0,0.64]
[1717210896732,2.4672,3778.6,3778.2,0.64]
[1717210907425,2.63577365,3778.8,3778.2,0.64]
[1717210911873,2.63577365,3778.8,3777.7,2.4177]
[1717210912086,2.63577365,3778.8,3778.2,0.64]
[1717210918526,2.66781477,3778.9,3778.2,0.64]
[1717210918698,0.19221477,3778.9,3778.7,0.64]
[1717210918899,0.19221477,3778.9,3778.7,3.0395]
[1717210920115,0.57220487,3779.6,3778.7,3.0395]
[1717210920434,2.4573,3779.7,3779.1,0.64]
[1717210927124,2.6457,3779.8,3779.2,2.3995]
[1717210928241,2.6457,3779.8,3779.3,0.64]
[1717210933741,2.4573,3780.7,3779.8,2.3995]
[1717210934224,2.4573,3780.7,3779.8,3.0395]
[1717210934426,0.0809076,3780.9,3779.3,2.3995]
[1717210934427,2.4573,3780.3,3779.3,2.3995]
[1717210934631,2.4573,3780.3,3779.4,0.504559]
[1717210936064,2.4573,3780.3,3779.5,0.64]
[1717210936357,2.4573,3780.3,3779.4,0.504559]
[1717210936358,2.4573,3780.3,3779.7,0.64]
[1717210936564,2.4573,3780.3,3779.4,0.504559]
[1717210936787,2.4573,3780.3,3779.6,0.64]
[1717210939264,5.14524,3780.4,3779.6,0.64]
[1717210941131,5.14524,3780.4,3779.4,0.504559]
[1717210941332,2.8168,3780.3,3779.5,0.9304059]
[1717210941951,2.8168,3780.3,3779.5,0.2904059]
[1717210942161,2.8168,3780.3,3779.5,0.9304059]
[1717210942889,2.2308,3780.3,3779.5,0.9304059]
[1717210943060,2.2308,3780.3,3779.6,0.38344649]
[1717210947844,5.14524,3780.4,3779.7,0.64]
[1717210950889,7.43744,3780.4,3779.7,0.64]
[1717210951044,7.43744,3780.4,3779.6,1.02344649]
[1717210953703,7.43744,3780.4,3779.8,0.64]
[1717210955090,5.14524,3780.4,3779.8,0.64]
[1717210961382,0.57204294,3780.3,3779.8,0.64]
[1717210963621,0.57204493,3780.3,3779.8,0.64]
[1717210967984,5.14524,3780.4,3779.8,0.64]
[1717210968526,0.57203372,3780.3,3779.8,0.64]
[1717210971083,0.56838828,3780.3,3779.8,0.64]
[1717210973547,0.56838828,3780.3,3779.8,0.94064]
[1717210975538,5.14524,3780.4,3779.8,0.94064]
[1717210975848,2.5,3780.4,3780.0,0.64]
[1717210976092,2.5,3780.4,3780.2,0.64]
[1717210976207,2.5,3780.4,3780.2,0.93907]
[1717210977644,2.5,3780.4,3780.2,0.29907]
[1717210980750,2.5,3780.4,3780.3,0.64]
[1717210984384,2.5,3780.4,3780.2,0.29907]
[1717210984535,2.5,3780.4,3780.3,0.64]
[1717210985931,2.5,3780.4,3780.3,3.095]
[1717210986280,2.5,3780.4,3780.3,3.434407]
[1717210988946,2.5,3780.4,3780.3,0.339407]
[1717210989251,2.5,3780.4,3780.3,0.979407]
[1717210989654,2.5,3780.4,3780.3,0.339407]
[1717210989895,2.5,3780.4,3780.1,0.64]
[1717210995354,2.5,3780.4,3779.9,2.64555]
[1717210995535,2.3026,3780.3,3779.8,0.30064]
[1717210995740,2.5,3780.4,3779.8,0.30064]
[1717210995975,2.5,3780.4,3780.3,0.64]
[1717210996194,2.5,3780.4,3780.3,3.095]
[1717210997249,2.5,3780.4,3780.3,3.669046]
[1717210999390,2.5,3780.4,3780.3,1.214046]
[1717211001090,2.5,3780.4,3780.3,0.574046]
[1717211002395,2.5,3780.4,3780.2,0.64]
[1717211002696,2.5,3780.4,3780.2,3.0759]
[1717211004281,2.5,3780.4,3780.2,0.64]
[1717211007479,2.5,3780.4,3780.3,2.4359]
[1717211008679,2.5,3780.4,3780.2,0.64]
[1717211008898,2.5,3780.4,3780.0,2.64546]
[1717211009057,2.5,3780.4,3780.3,0.64]
[1717211009257,5.0,3780.4,3780.3,0.64]
[1717211010683,5.0,3780.4,3780.2,0.64]
[1717211012400,5.0,3780.4,3779.8,0.30064]
[1717211012610,5.0,3780.4,3780.0,0.64]
[1717211014111,5.0,3780.4,3780.1,0.64]
[1717211015165,2.3682,3780.3,3779.6,7.43]
[1717211015368,2.3682,3780.3,3779.7,1.277641]
[1717211015561,2.3682,3780.3,3779.9,0.64]
[1717211016412,5.0,3780.4,3779.9,0.64]
[1717211016916,5.0,3780.4,3779.6,7.43]
[1717211016917,2.3682,3780.3,3779.6,7.43]
[1717211017211,2.3682,3780.3,3779.5,0.64]
[1717211017212,0.80082,3780.2,3779.5,0.64]
[1717211017522,5.01351,3780.3,3779.5,0.64]
[1717211019693,2.64531,3780.3,3779.9,0.64]
[1717211021761,5.0,3780.4,3780.1,0.64]
[1717211022159,5.0,3780.4,3779.9,0.64]
[1717211023606,2.4448,3780.3,3779.9,0.64]
[1717211024110,2.4448,3780.3,3779.7,0.64]
[1717211024300,2.4448,3780.3,3779.7,1.209316]
[1717211026503,2.4448,3780.3,3779.7,0.64]
[1717211032316,5.0,3780.4,3779.9,0.64]
[1717211033468,5.0,3780.4,3779.9,3.0474]
[1717211033891,5.0,3780.4,3779.9,0.64]
[1717211034704,5.0,3780.4,3779.6,5.05316]
[1717211034888,5.0,3780.4,3779.9,2.64556]
[1717211035222,5.0,3780.4,3779.8,0.64]
[1717211035723,5.0,3780.4,3779.4,2.64587]
[1717211035885,5.0,3780.4,3779.8,0.64]
[1717211036096,5.0,3780.4,3779.7,0.64]
[1717211036474,2.4448,3780.3,3779.6,0.64]
[1717211037038,2.4448,3780.3,3779.4,2.64587]
[1717211037202,2.4448,3780.3,3779.6,0.64]
[1717211037403,2.4448,3780.3,3779.4,3.894197]
[1717211037605,2.4448,3780.3,3779.6,0.64]
[1717211038115,2.4448,3780.3,3779.4,3.894197]
[1717211038321,2.4448,3780.3,3779.6,0.64]
[1717211040941,0.64,3780.2,3779.3,8.07]
[1717211041102,2.4123,3780.1,3779.3,7.43]
[1717211041305,2.4123,3780.1,3779.3,8.07]
[1717211046326,2.4123,3780.1,3779.3,0.64]
[1717211046956,2.4123,3780.1,3779.0,2.421]
[1717211047100,2.4123,3780.1,3779.4,0.64]
[1717211052516,2.4123,3780.1,3779.1,0.533192]
[1717211052716,2.4123,3780.1,3779.4,0.64]
[1717211055683,2.4123,3780.3,3779.6,0.64]
[1717211056932,2.4123,3780.3,3779.2,5.06701]
[1717211057137,2.4123,3780.3,3779.6,0.64]
[1717211057989,2.4957037,3780.3,3779.6,0.64]
[1717211060974,2.4957037,3780.3,3779.3,0.5600202]
[1717211061177,2.4957037,3780.3,3779.5,0.64]
[1717211061493,0.0834037,3780.3,3779.6,2.64573]
[1717211061641,0.0834037,3780.3,3779.6,5.55130502]
[1717211061841,0.0834037,3780.3,3779.6,6.19130502]
[1717211062107,2.4031,3780.1,3779.1,2.64607]
[1717211062405,2.4031,3780.1,3779.2,0.64]
[1717211063043,2.4865037,3780.1,3779.2,0.64]
[1717211064651,2.4865037,3780.1,3779.4,0.64]
[1717211065044,4.9865037,3780.1,3779.4,0.64]
[1717211069454,6.54969107,3780.1,3779.4,0.64]
[1717211071169,2.4031,3780.0,3779.4,0.64]
[1717211071956,2.4865037,3780.0,3779.4,0.64]
[1717211072573,2.4865037,3780.0,3779.2,0.64]
[1717211073986,2.4865037,3780.0,3779.1,0.64]
[1717211074187,2.64558,3779.9,3779.1,0.64]
[1717211074503,2.4031,3779.8,3778.8,2.35]
[1717211074797,2.4031,3779.8,3779.2,0.64]
[1717211075308,2.4865037,3779.8,3779.2,0.64]
[1717211079222,2.4865037,3779.8,3778.8,2.35]
[1717211079512,2.4865037,3779.8,3779.2,0.64]
[1717211086727,2.4865037,3779.8,3779.1,0.64]
[1717211089815,2.4532,3779.7,3779.3,0.64]
[1717211090018,2.4532,3779.7,3779.4,0.328608]
[1717211090244,2.5366037,3779.7,3779.3,0.64]
[1717211090732,2.5366037,3779.7,3779.1,2.64608]
[1717211090902,2.5366037,3779.7,3779.3,0.64]
[1717211091832,2.5366037,3779.7,3779.1,3.28608]
[1717211092001,2.5366037,3779.7,3779.1,0.64]
[1717211097546,0.0834037,3779.7,3779.2,2.646]
[1717211097973,0.0834037,3779.7,3779.5,0.64]
[1717211099699,0.0834037,3779.7,3779.3,0.64]
[1717211099853,2.4386,3779.6,3779.3,0.64]
[1717211100450,2.5220037,3779.6,3779.3,0.64]
[1717211102305,0.0834037,3779.6,3779.3,0.64]
[1717211102604,0.0834037,3779.6,3779.3,0.999512]
[1717211106700,0.0834037,3779.6,3779.3,0.359512]
[1717211106899,0.0834037,3779.6,3779.3,0.999512]
[1717211107407,0.0834037,3779.6,3779.3,0.64]
[1717211108373,0.0834037,3779.6,3779.2,2.4925]
[1717211108574,0.0834037,3779.6,3779.5,3.1325]
[1717211110070,0.0834037,3779.6,3779.5,0.64]
[1717211110825,0.0834037,3779.6,3779.5,3.1325]
[1717211111130,0.0834037,3779.6,3779.5,3.87476422]
[1717211116078,0.0834037,3779.6,3779.5,1.38226422]
[1717211116509,0.0834037,3779.6,3779.5,0.74226422]
[1717211116729,0.0834037,3779.6,3779.5,1.38226422]
[1717211118182,0.0834037,3779.6,3779.5,0.64]
[1717211118684,1.86,3779.5,3779.4,2.91062]
[1717211118884,1.86,3779.5,3779.4,3.55062]
[1717211119724,1.9434037,3779.5,3779.4,3.55062]
[1717211121516,1.9434037,3779.5,3779.4,2.64592]
[1717211121696,1.9434037,3779.5,3779.4,3.28592]
[1717211124336,1.9434037,3779.5,3779.4,3.671894]
[1717211129233,1.9434037,3779.5,3779.4,3.28592]
[1717211133654,1.9434037,3779.5,3779.4,5.65742]
[1717211139908,1.9434037,3779.5,3779.4,8.44942]
[1717211140113,1.9434037,3779.5,3779.4,10.64537708]
[1717211140820,1.9434037,3779.5,3779.4,7.3014611]
[1717211141058,1.9434037,3779.5,3779.4,8.47969821]
[1717211142758,1.9434037,3779.5,3779.4,11.27169821]
[1717211143412,1.9434037,3779.5,3779.4,11.27169578]